bitfinex-derivatives/quotes_SOLF0:USTF0_20240926
["timestamp","ask_amount","ask_price","bid_price","bid_amount"]
[1727334032660,10.19,150.86,150.81,3.3158]
[1727334033560,10.19,150.86,150.8,13.5059]
[1727334034257,10.19,150.84,150.78,152.47316916]
[1727334034572,1.4038,150.89,150.78,162.66316916]
[1727334034573,2.6973,150.89,150.78,162.66316916]
[1727334034865,10.19,150.84,150.79,10.19]
[1727334035064,3.3156,150.83,150.8,10.19]
[1727334035259,10.19,150.85,150.8,10.19]
[1727334035659,3.3154,150.84,150.8,13.5059]
[1727334036462,3.3154,150.84,150.81,3.3158]
[1727334036665,3.3154,150.84,150.82,10.19]
[1727334038365,2.6973,150.89,150.78,76.20956916]
[1727334038366,10.19,150.85,150.78,76.20956916]
[1727334038570,10.19,150.85,150.8,10.19]
[1727334040361,3.3154,150.84,150.81,3.3159]
[1727334042667,1.4038,150.89,150.83,10.19]
[1727334042870,3.32758615,150.93,150.85,10.19]
[1727334043059,3.3145,150.88,150.85,10.19]
[1727334043863,3.3146,150.87,150.85,10.19]
[1727334044264,3.3146,150.87,150.84,13.5051]
[1727334044860,3.3148,150.86,150.83,13.5053]
[1727334045058,10.19,150.86,150.81,10.19]
[1727334046068,10.19,150.86,150.82,3.3155]
[1727334046069,3.3151,150.85,150.82,3.3155]
[1727334047174,3.3151,150.85,150.81,13.5058]
[1727334047571,3.3152,150.84,150.8,13.506]
[1727334048669,10.19,150.85,150.79,13.5062]
[1727334048670,3.3155,150.83,150.79,13.5062]
[1727334049875,3.3152,150.85,150.81,3.3158]
[1727334050075,3.3152,150.85,150.81,13.5058]
[1727334052174,3.3149,150.86,150.83,10.19]
[1727334052374,10.19,150.88,150.83,10.19]
[1727334053681,3.315,150.85,150.83,10.19]
[1727334053877,3.315,150.85,150.82,3.3156]
[1727334054077,3.315,150.85,150.82,13.5056]
[1727334054780,3.315,150.85,150.82,3.3156]
[1727334055079,3.3153,150.84,150.81,10.19]
[1727334055277,4.056,150.91,150.78,72.89316916]
[1727334055477,10.19,150.83,150.78,83.08316916]
[1727334055675,3.3156,150.83,150.8,3.3161]
[1727334056078,10.19,150.84,150.78,72.89316916]
[1727334056271,3.3157,150.82,150.79,10.19]
[1727334057783,3.3157,150.82,150.79,13.5063]
[1727334060277,3.3145,150.88,150.79,10.19]
[1727334060580,4.056,150.91,150.82,10.19]
[1727334060778,10.19,150.87,150.82,10.19]
[1727334060978,3.3151,150.85,150.82,10.19]
[1727334061380,3.3151,150.85,150.82,13.5056]
[1727334061577,3.3149,150.86,150.84,10.19]
[1727334061779,10.19,150.88,150.84,10.19]
[1727334062084,3.3147,150.87,150.85,10.19]
[1727334062687,3.3144,150.88,150.85,10.19]
[1727334062984,10.19,150.9,150.86,10.19]
[1727334063380,10.19,150.92,150.86,13.5046]
[1727334064189,10.19,150.93,150.87,13.5045]
[1727334064481,3.3139,150.91,150.89,10.19]
[1727334064976,10.19,150.94,150.89,10.19]
[1727334065173,3.3135,150.92,150.89,10.19]
[1727334067285,3.3137,150.91,150.89,10.19]
[1727334069780,3.3139,150.9,150.87,3.3145]
[1727334070380,3.3139,150.9,150.88,10.19]
[1727334073390,10.19,150.92,150.89,3.314]
[1727334073692,10.19,150.94,150.89,10.19]
[1727334074881,3.3136,150.92,150.9,10.19]
[1727334075987,3.3136,150.92,150.89,13.5041]
[1727334076183,3.3136,150.92,150.89,3.3141]
[1727334077293,3.3136,150.92,150.88,13.5042]
[1727334079085,10.19,150.92,150.87,3.3145]
[1727334079285,10.19,150.92,150.87,13.5045]
[1727334079485,10.19,150.91,150.87,10.19]
[1727334079684,11.054391,150.96,150.84,79.56]
[1727334079889,10.19,150.88,150.84,89.75]
[1727334080493,13.5045,150.88,150.84,13.5051]
[1727334082190,13.5045,150.88,150.84,10.19]
[1727334082191,3.3147,150.87,150.84,10.19]
[1727334083183,3.3147,150.87,150.84,3.3151]
[1727334083491,11.05644092,150.96,150.8,89.75]
[1727334083688,10.19,150.84,150.8,93.066]
[1727334083895,10.19,150.84,150.8,79.56]
[1727334084590,3.3156,150.83,150.8,79.56]
[1727334085184,13.5053,150.84,150.8,93.0661]
[1727334088792,2.7193,150.91,150.81,10.19]
[1727334088989,2.7193,150.91,150.84,10.19]
[1727334089190,10.19,150.85,150.71,3.8747]
[1727334089391,3.316,150.81,150.77,13.5067]
[1727334089592,10.19,150.82,150.77,10.19]
[1727334090097,3.3159,150.81,150.77,13.5066]
[1727334092496,3.3159,150.81,150.77,3.3166]
[1727334093396,3.3157,150.82,150.78,3.3165]
[1727334095504,15.92,150.83,150.73,95.5]
[1727334096191,3.3162,150.8,150.73,95.5]
[1727334097189,3.3162,150.8,150.76,3.317]
[1727334097595,3.3163,150.79,150.76,3.317]
[1727334097791,15.92,150.83,150.74,3.3174]
[1727334097998,15.92,150.81,150.74,3.3174]
[1727334098398,15.92,150.81,150.73,79.58]
[1727334101011,15.92,150.81,150.71,3.8747]
[1727334101397,3.3167,150.78,150.74,3.3173]
[1727334102004,15.92,150.81,150.74,3.3173]
[1727334102005,3.3168,150.77,150.74,3.3173]
[1727334102303,15.92,150.81,150.74,3.3173]
[1727334102806,3.3167,150.78,150.74,3.3173]
[1727334103107,15.92,150.81,150.71,3.8747]
[1727334103295,3.3168,150.77,150.71,3.8747]
[1727334103500,3.3168,150.77,150.73,3.3175]
[1727334105202,15.92,150.79,150.72,3.3178]
[1727334105402,4.0282,150.82,150.72,3.3178]
[1727334105707,3.3171,150.76,150.72,3.3178]
[1727334107507,3.3171,150.76,150.73,3.3176]
[1727334107909,3.3171,150.76,150.71,3.8747]
[1727334107910,3.3172,150.75,150.71,3.8747]
[1727334108107,15.92,150.78,150.72,3.3177]
[1727334108601,3.3171,150.76,150.72,3.3177]
[1727334109007,3.3171,150.76,150.73,3.3176]
[1727334110001,3.3168,150.77,150.73,3.3176]
[1727334111111,3.317,150.76,150.72,3.3178]
[1727334112306,3.317,150.76,150.73,3.3176]
[1727334112704,3.3167,150.78,150.71,19.7947]
[1727334113112,3.3167,150.78,150.74,3.3174]
[1727334114417,3.3168,150.77,150.74,3.3174]
[1727334115509,4.0282,150.82,150.69,79.62]
[1727334115510,10.19,150.75,150.69,79.62]
[1727334115714,4.0282,150.82,150.69,89.81]
[1727334115913,10.19,150.74,150.69,93.12486323]
[1727334116414,13.5076,150.74,150.71,3.3181]
[1727334117411,13.5076,150.74,150.7,3.3182]
[1727334118512,3.3177,150.73,150.7,3.3182]
[1727334119411,10.19,150.72,150.66,79.62]
[1727334119612,10.19,150.71,150.66,89.81]
[1727334120211,13.5082,150.71,150.67,3.3188]
[1727334120406,13.5082,150.71,150.66,89.81]
[1727334121112,10.19,150.71,150.68,3.3187]
[1727334122117,13.5081,150.71,150.68,3.3187]
[1727334122420,10.19,150.7,150.66,79.62]
[1727334122811,13.5083,150.7,150.66,82.9391]
[1727334123011,10.19,150.7,150.66,79.62]
[1727334123210,3.3181,150.71,150.68,10.19]
[1727334123416,3.3181,150.71,150.67,3.3188]
[1727334124210,13.5081,150.71,150.67,3.3188]
[1727334124410,13.5083,150.7,150.66,82.9391]
[1727334124622,10.19,150.69,150.66,82.9391]
[1727334125014,13.5083,150.7,150.66,82.9391]
[1727334125821,3.3183,150.7,150.67,3.3189]
[1727334126425,13.5081,150.71,150.67,3.3189]
[1727334129424,3.3181,150.71,150.67,3.3189]
[1727334129619,13.5081,150.71,150.67,3.3189]
[1727334130128,13.5081,150.71,150.68,3.3187]
[1727334130517,3.3179,150.72,150.69,3.3185]
[1727334130719,10.19,150.72,150.69,3.3185]
[1727334130923,10.19,150.73,150.68,10.19]
[1727334131322,13.5078,150.73,150.7,3.3183]
[1727334133628,13.5078,150.73,150.71,3.3181]
[1727334133928,10.19,150.73,150.71,3.3181]
[1727334135127,13.5075,150.74,150.69,10.19]
[1727334135934,13.5075,150.74,150.69,13.55974118]
[1727334136137,13.5075,150.74,150.71,3.3179]
[1727334138036,10.19,150.73,150.71,3.3179]
[1727334140441,10.19,150.72,150.67,10.19]
[1727334140843,10.19,150.72,150.68,3.25732822]
[1727334141841,13.5079,150.72,150.69,3.3184]
[1727334145846,2.6489,150.79,150.67,3.3188]
[1727334146049,10.19,150.71,150.67,3.3188]
[1727334146451,13.5082,150.71,150.67,3.3188]
[1727334146847,13.5082,150.71,150.68,3.3187]
[1727334149156,10.19,150.71,150.68,3.3187]
[1727334150055,3.318,150.72,150.68,13.5087]
[1727334150254,3.318,150.72,150.68,3.3187]
[1727334150255,3.3181,150.71,150.68,3.3187]
[1727334150954,13.5079,150.72,150.68,3.3187]
[1727334154554,3.3181,150.71,150.67,13.5089]
[1727334154760,3.3181,150.71,150.67,10.19]
[1727334154961,3.3181,150.71,150.66,1.3411]
[1727334155158,13.5081,150.71,150.66,11.5311]
[1727334155561,3.3183,150.7,150.67,3.3189]
[1727334155860,10.19,150.71,150.67,3.3189]
[1727334156061,13.5082,150.71,150.67,3.3189]
[1727334156564,10.19,150.7,150.65,2.7577]
[1727334156764,3.35612714,150.75,150.65,12.9477]
[1727334156958,10.19,150.7,150.66,3.3191]
[1727334157158,13.5084,150.7,150.66,3.3191]
[1727334157554,10.19,150.68,150.63,79.64]
[1727334158052,10.19,150.68,150.63,89.83]
[1727334158964,13.5089,150.68,150.65,3.3194]
[1727334159162,10.19,150.68,150.65,3.3194]
[1727334159363,13.5086,150.69,150.65,3.3194]
[1727334159761,1.3574,150.73,150.65,10.19]
[1727334159955,10.19,150.72,150.67,10.19]
[1727334160463,3.3182,150.71,150.68,3.3187]
[1727334160666,3.3182,150.71,150.67,10.19]
[1727334161061,3.3182,150.71,150.68,3.3187]
[1727334162068,3.3178,150.73,150.68,10.19]
[1727334162664,3.318,150.72,150.69,3.3184]
[1727334165469,3.318,150.72,150.69,13.5084]
[1727334167168,3.318,150.72,150.69,3.3184]
[1727334169876,3.318,150.72,150.69,13.5084]
[1727334170070,2.5702,150.79,150.66,3.319]
[1727334170277,10.19,150.72,150.67,10.19]
[1727334170582,3.3182,150.71,150.68,3.3187]
[1727334171778,3.3187,150.69,150.66,3.3191]
[1727334171978,13.5087,150.69,150.66,3.3191]
[1727334172178,10.19,150.69,150.65,79.66]
[1727334172579,13.5087,150.69,150.65,82.9793]
[1727334173686,13.5087,150.69,150.65,3.3193]
[1727334174884,3.3188,150.68,150.65,3.3193]
[1727334182191,3.3184,150.7,150.66,13.509]
[1727334182496,4.0524,150.74,150.69,10.19]
[1727334182688,3.3177,150.73,150.7,10.19]
[1727334182988,10.19,150.75,150.7,10.19]
[1727334183188,10.19,150.75,150.7,13.5082]
[1727334183189,3.3176,150.74,150.7,13.5082]
[1727334183389,10.19,150.75,150.7,13.5082]
[1727334183895,10.19,150.75,150.71,13.508]
[1727334184792,3.3176,150.74,150.71,13.508]
[1727334185988,10.19,150.75,150.7,10.19]
[1727334186189,10.19,150.75,150.69,3.3185]
[1727334186492,10.19,150.72,150.68,10.19]
[1727334186687,10.19,150.72,150.69,4.74980963]
[1727334186886,10.19,150.72,150.68,10.19]
[1727334187187,10.19,150.72,150.69,4.74983171]
[1727334187393,3.3182,150.71,150.68,10.19]
[1727334187788,3.3182,150.71,150.69,4.75058998]
[1727334188488,3.3182,150.71,150.68,10.19]
[1727334188894,3.3182,150.71,150.69,4.75172215]
[1727334189096,3.3182,150.71,150.68,10.19]
[1727334189291,3.3182,150.71,150.69,4.75126974]
[1727334189491,3.3182,150.71,150.68,10.19]
[1727334189691,3.3182,150.71,150.69,4.75150174]
[1727334189892,3.3182,150.71,150.68,10.19]
[1727334190090,3.3182,150.71,150.69,4.75160197]
[1727334190294,3.3182,150.71,150.68,10.19]
[1727334190499,3.3182,150.71,150.69,4.7515954]
[1727334190701,3.3182,150.71,150.68,10.19]
[1727334191901,3.3182,150.71,150.68,13.5087]
[1727334192799,3.3182,150.71,150.68,10.19]
[1727334193789,3.3183,150.7,150.66,13.5091]
[1727334193990,10.19,150.71,150.67,12.35405528]
[1727334194194,10.19,150.71,150.68,4.75155972]
[1727334194399,10.19,150.71,150.65,11.5086]
[1727334194801,10.19,150.71,150.66,12.35741968]
[1727334194996,10.19,150.71,150.67,4.75285372]
[1727334195198,10.19,150.71,150.65,13.5092]
[1727334195400,3.3186,150.69,150.65,13.5092]
[1727334195596,3.3186,150.69,150.66,4.75327943]
[1727334195892,3.3186,150.69,150.65,13.5092]
[1727334195893,10.19,150.69,150.67,4.75327943]
[1727334196098,13.5086,150.69,150.67,4.75327943]
[1727334196297,13.5086,150.69,150.65,13.5092]
[1727334196799,13.5086,150.69,150.66,4.75323067]
[1727334197004,3.3187,150.68,150.67,4.75323067]
[1727334197298,3.3187,150.68,150.64,94.4764]
[1727334197499,13.5087,150.68,150.65,12.35860564]
[1727334197803,13.5087,150.68,150.66,4.75330986]
[1727334197804,3.319,150.67,150.66,4.75330986]
[1727334198001,13.509,150.67,150.66,4.75330986]
[1727334198295,13.509,150.67,150.64,79.64]
[1727334198495,13.5088,150.68,150.65,4.75311053]
[1727334198695,3.3188,150.68,150.66,10.19]
[1727334198899,10.19,150.7,150.66,10.19]
[1727334200501,3.3186,150.69,150.66,10.19]
[1727334201296,3.3186,150.69,150.65,3.3193]
[1727334201702,3.3188,150.68,150.65,3.3193]
[1727334202604,3.3186,150.69,150.65,3.3193]
[1727334203097,3.3188,150.68,150.65,3.3193]
[1727334205200,3.3192,150.66,150.62,2.5895]
[1727334205504,3.3192,150.66,150.63,12.35480777]
[1727334205707,3.3192,150.66,150.64,4.75184914]
[1727334205895,13.5091,150.67,150.65,4.75184914]
[1727334206094,3.3191,150.67,150.63,10.19]
[1727334206297,3.3191,150.67,150.63,13.5097]
[1727334206502,3.3191,150.67,150.64,4.75194762]
[1727334206702,3.3188,150.68,150.65,14.94194762]
[1727334206905,3.3188,150.68,150.65,10.19]
[1727334207206,3.3187,150.69,150.65,13.5093]
[1727334207804,3.3188,150.68,150.65,13.5093]
[1727334209602,3.3191,150.67,150.63,3.3197]
[1727334209803,3.3191,150.67,150.63,13.5097]
[1727334210198,3.3191,150.67,150.64,3.3196]
[1727334210404,3.3191,150.67,150.65,4.75167802]
[1727334210601,3.319,150.67,150.63,10.19]
[1727334210803,3.319,150.67,150.64,4.75154556]
[1727334210996,3.319,150.67,150.65,4.75154556]
[1727334211202,3.319,150.67,150.63,13.5097]
[1727334211406,3.319,150.67,150.64,4.75153425]
[1727334211606,3.319,150.67,150.65,4.75153425]
[1727334211808,3.319,150.67,150.63,13.5097]
[1727334212105,13.509,150.67,150.64,4.75153457]
[1727334212306,13.509,150.67,150.65,4.75153457]
[1727334212506,10.19,150.66,150.61,74.30309954]
[1727334212707,10.19,150.66,150.62,4.75180333]
[1727334212907,10.19,150.66,150.63,4.75180333]
[1727334213102,3.3196,150.65,150.61,77.62319954]
[1727334213405,3.3196,150.65,150.62,4.75234205]
[1727334213904,3.3196,150.65,150.61,74.30309954]
[1727334214102,3.3196,150.65,150.62,4.75162487]
[1727334214300,3.3196,150.65,150.61,77.62329954]
[1727334214505,3.3196,150.65,150.62,4.75093778]
[1727334214714,3.3196,150.65,150.61,87.81329954]
[1727334214901,10.19,150.67,150.63,10.19]
[1727334215100,10.19,150.66,150.61,74.30309954]
[1727334215305,10.19,150.66,150.62,4.75086479]
[1727334215512,10.19,150.66,150.61,84.49309954]
[1727334215808,10.19,150.66,150.62,4.75020395]
[1727334216109,10.19,150.66,150.61,84.49309954]
[1727334216298,10.19,150.66,150.62,4.75011637]
[1727334216502,10.19,150.66,150.61,84.49309954]
[1727334216908,3.3194,150.65,150.62,8.06941765]
[1727334217108,3.3194,150.65,150.62,3.3199]
[1727334218114,3.3194,150.65,150.61,77.62319954]
[1727334218306,3.3194,150.65,150.62,4.74875983]
[1727334218506,3.3194,150.65,150.61,87.81319954]
[1727334219006,3.3196,150.64,150.61,76.28679954]
[1727334219405,3.3199,150.63,150.61,72.96669954]
[1727334222514,13.5098,150.64,150.61,72.96669954]
[1727334222818,10.19,150.64,150.61,72.96669954]
[1727334223613,1.4017,150.73,150.63,10.19]
[1727334223813,10.19,150.68,150.63,10.19]
[1727334224807,10.19,150.7,150.64,10.19]
[1727334225516,10.19,150.7,150.64,13.5095]
[1727334225917,3.3189,150.68,150.64,13.5095]
[1727334227218,3.319,150.67,150.64,13.5095]
[1727334228619,3.3188,150.68,150.64,13.5095]
[1727334229415,1.4017,150.73,150.69,3.3184]
[1727334229617,10.19,150.75,150.69,10.19]
[1727334229810,10.19,150.75,150.71,10.19]
[1727334230008,11.07057945,150.81,150.72,13.5077]
[1727334230213,10.19,150.78,150.72,13.5077]
[1727334230613,3.317,150.76,150.72,13.5077]
[1727334233524,3.3172,150.75,150.72,3.3177]
[1727334233720,3.3172,150.75,150.72,13.5077]
[1727334235118,3.317,150.76,150.73,13.5076]
[1727334238026,3.3173,150.75,150.72,3.3178]
[1727334241831,10.19,150.77,150.71,10.19]
[1727334241832,3.3175,150.74,150.71,13.508]
[1727334243131,3.3175,150.74,150.71,10.19]
[1727334243327,10.19,150.75,150.7,13.5082]
[1727334243530,10.19,150.75,150.7,10.19]
[1727334244228,10.19,150.76,150.71,13.508]
[1727334245328,10.19,150.76,150.68,1.4039]
[1727334245536,4.0622,150.82,150.67,82.339]
[1727334245537,10.19,150.72,150.67,82.339]
[1727334245731,10.19,150.72,150.67,92.529]
[1727334246428,10.19,150.72,150.67,12.869]
[1727334246926,10.19,150.72,150.67,16.1878]
[1727334246927,3.3183,150.7,150.67,16.1878]
[1727334247730,3.3181,150.71,150.68,10.19]
[1727334248130,3.3181,150.71,150.68,13.5087]
[1727334248934,10.19,150.72,150.67,4.6259]
[1727334249129,10.19,150.72,150.67,14.8159]
[1727334249332,10.19,150.7,150.65,10.19]
[1727334249636,10.19,150.7,150.65,13.5093]
[1727334249637,3.3187,150.69,150.65,13.5093]
[1727334255031,13.5087,150.69,150.65,13.5093]
[1727334255234,3.3188,150.68,150.65,10.19]
[1727334256738,13.5086,150.69,150.65,13.5093]
[1727334257336,3.3188,150.68,150.65,13.5093]
[1727334260533,3.3188,150.68,150.63,1.3873]
[1727334260534,10.19,150.68,150.63,1.3873]
[1727334260736,10.19,150.68,150.63,11.5773]
[1727334261242,3.3191,150.67,150.63,14.8969]
[1727334262334,3.3188,150.68,150.65,10.19]
[1727334263240,3.3188,150.68,150.65,13.5093]
[1727334266140,3.3188,150.68,150.65,3.3193]
[1727334268348,3.3186,150.69,150.65,3.3193]
[1727334269044,3.3187,150.68,150.65,3.3193]
[1727334270051,10.19,150.68,150.63,1.3873]
[1727334270448,3.3191,150.67,150.63,4.707]
[1727334270849,3.3191,150.67,150.63,1.3873]
[1727334271054,13.5088,150.68,150.64,3.3194]
[1727334271650,3.3192,150.66,150.62,2.665]
[1727334271853,13.5092,150.66,150.62,2.665]
[1727334272348,13.5092,150.66,150.62,5.9849]
[1727334272856,13.5092,150.66,150.63,3.3198]
[1727334273253,3.319,150.67,150.64,10.19]
[1727334273656,3.319,150.67,150.63,3.3198]
[1727334273958,3.319,150.67,150.64,10.19]
[1727334274351,3.319,150.67,150.64,13.5096]
[1727334277357,3.3188,150.68,150.65,3.3194]
[1727334277958,13.5086,150.69,150.66,3.3191]
[1727334278158,3.3186,150.69,150.66,3.3191]
[1727334279563,3.3186,150.69,150.67,3.3189]
[1727334279758,3.3183,150.7,150.67,3.3189]
[1727334280660,3.3186,150.69,150.66,3.3191]
[1727334281957,3.3186,150.69,150.65,13.5093]
[1727334284869,3.3186,150.69,150.66,3.3191]
[1727334285662,3.3186,150.69,150.65,3.3193]
[1727334285861,3.3186,150.69,150.65,13.5093]
[1727334288768,10.19,150.71,150.65,13.5093]
[1727334288769,3.3188,150.68,150.65,13.5093]
[1727334294069,13.5086,150.69,150.65,13.5093]
[1727334300464,10.19,150.68,150.63,3.3198]
[1727334301268,3.3191,150.67,150.63,3.3198]
[1727334302269,3.3188,150.68,150.65,10.19]
[1727334302768,13.5087,150.69,150.65,13.5094]
[1727334305270,3.3184,150.7,150.66,13.5091]
[1727334306374,3.3182,150.71,150.67,13.5088]
[1727334306976,3.3184,150.7,150.67,13.5088]
[1727334307377,10.19,150.72,150.67,13.5088]
[1727334307574,3.3183,150.71,150.67,13.5088]
[1727334308078,3.3183,150.71,150.68,3.3187]
[1727334310582,10.19,150.73,150.68,10.19]
[1727334311383,3.3178,150.73,150.7,13.5081]
[1727334311580,9.3978,150.82,150.71,10.19]
[1727334311780,10.6908,150.82,150.71,10.19]
[1727334311987,3.3174,150.75,150.72,3.3177]
[1727334316289,3.3174,150.75,150.72,13.5077]
[1727334316588,10.19,150.74,150.69,10.19]
[1727334316789,10.19,150.74,150.7,4.74912393]
[1727334316992,10.19,150.74,150.71,4.74912393]
[1727334317289,10.19,150.73,150.68,10.19]
[1727334317586,10.19,150.73,150.69,12.34895563]
[1727334317784,10.19,150.72,150.7,4.74959832]
[1727334317985,10.19,150.72,150.68,3.3187]
[1727334318290,10.19,150.72,150.69,4.75016567]
[1727334318481,10.19,150.72,150.7,4.75016567]
[1727334318686,10.19,150.72,150.68,3.3187]
[1727334318889,3.3181,150.71,150.69,4.75082278]
[1727334319190,10.19,150.7,150.64,1.3089]
[1727334319389,10.19,150.69,150.65,12.35530754]
[1727334319590,10.19,150.69,150.66,4.75204136]
[1727334319789,10.19,150.69,150.64,14.8184]
[1727334319987,10.19,150.69,150.65,12.35683073]
[1727334320186,10.19,150.7,150.66,4.7526272]
[1727334320388,3.3192,150.66,150.61,2.749]
[1727334320695,3.3192,150.66,150.64,4.7530589]
[1727334320884,3.3192,150.66,150.61,12.939]
[1727334321084,3.3192,150.66,150.64,4.75305922]
[1727334321293,10.19,150.67,150.64,4.75305922]
[1727334321294,13.509,150.67,150.64,4.75305922]
[1727334321594,13.509,150.67,150.61,12.939]
[1727334321890,13.509,150.67,150.64,4.7530101]
[1727334322192,13.509,150.67,150.61,12.939]
[1727334322388,13.509,150.67,150.64,4.75290402]
[1727334322587,13.509,150.67,150.63,89.85]
[1727334322787,13.509,150.67,150.64,4.75290402]
[1727334322987,13.509,150.67,150.63,93.1698]
[1727334323193,13.509,150.67,150.64,4.75282609]
[1727334323493,13.509,150.67,150.63,93.1698]
[1727334323882,13.509,150.67,150.64,4.75275865]
[1727334324489,7.2842225,150.74,150.64,4.75275865]
[1727334324690,10.19,150.7,150.65,10.19]
[1727334325388,3.3186,150.69,150.65,13.5093]
[1727334326796,3.3187,150.68,150.65,13.5093]
[1727334327492,13.5087,150.68,150.65,3.3193]
[1727334328499,3.319,150.67,150.64,3.3196]
[1727334336801,7.2842225,150.74,150.66,10.19]
[1727334336802,11.4787,150.74,150.66,10.19]
[1727334337001,11.4787,150.74,150.69,10.19]
[1727334337404,11.4787,150.74,150.69,13.5084]
[1727334337597,1.2887,150.74,150.7,10.19]
[1727334338304,3.3178,150.73,150.7,10.19]
[1727334339406,3.3178,150.73,150.69,13.5084]
[1727334343311,3.3179,150.72,150.69,13.5084]
[1727334347710,3.3177,150.73,150.7,3.3182]
[1727334352607,10.19,150.71,150.66,2.7307]
[1727334352812,10.19,150.7,150.65,11.4957]
[1727334353009,10.19,150.7,150.66,4.74592439]
[1727334353317,10.19,150.71,150.66,10.19]
[1727334353718,3.2661692,150.74,150.68,10.19]
[1727334353926,10.19,150.71,150.68,10.19]
[1727334355014,13.5082,150.71,150.68,13.5087]
[1727334357026,3.3182,150.71,150.69,3.3185]
[1727334357342,3.3182,150.71,150.68,10.19]
[1727334357728,3.3179,150.72,150.69,3.3185]
[1727334359231,10.19,150.72,150.66,1.3644]
[1727334359425,10.19,150.72,150.66,11.5544]
[1727334360029,3.3184,150.7,150.68,3.3187]
[1727334360230,10.19,150.72,150.68,3.3187]
[1727334361129,1.3398,150.78,150.69,3.3183]
[1727334361326,10.19,150.76,150.7,10.19]
[1727334361627,10.19,150.74,150.69,10.19]
[1727334362031,3.3183,150.7,150.67,3.3189]
[1727334362228,10.19,150.74,150.66,4.75549788]
[1727334362229,10.19,150.71,150.66,1.3644]
[1727334362429,10.19,150.71,150.67,4.7453601]
[1727334362632,10.19,150.71,150.67,3.3189]
[1727334362832,10.19,150.71,150.66,11.5544]
[1727334363433,3.3186,150.69,150.66,14.8735]
[1727334366138,3.33300272,150.74,150.66,14.8735]
[1727334366139,3.3184,150.7,150.68,10.19]
[1727334366824,3.3181,150.71,150.68,10.19]
[1727334367437,3.3181,150.71,150.68,13.5087]
[1727334368031,3.3181,150.71,150.69,10.19]
[1727334369029,3.3179,150.72,150.69,13.5085]
[1727334369425,3.3179,150.72,150.69,10.19]
[1727334371833,3.3181,150.71,150.68,3.3186]
[1727334372132,3.3181,150.71,150.67,13.5089]
[1727334372338,10.19,150.73,150.67,13.5089]
[1727334373041,10.19,150.72,150.66,4.6835]
[1727334373237,10.19,150.72,150.66,14.8735]
[1727334373538,3.3186,150.69,150.67,4.74620023]
[1727334374241,3.3184,150.7,150.66,14.8735]
[1727334374441,3.3184,150.7,150.67,4.7462321]
[1727334374640,3.3184,150.7,150.66,14.8735]
[1727334374841,3.3184,150.7,150.67,4.74610352]
[1727334375042,3.3184,150.7,150.66,14.8735]
[1727334375242,3.3184,150.7,150.67,4.74623429]
[1727334375441,3.3184,150.7,150.66,14.8735]
[1727334375640,3.3184,150.7,150.67,4.74610431]
[1727334375839,3.3184,150.7,150.66,4.6835]
[1727334376037,3.3184,150.7,150.66,14.8735]